fUST/lending_fUST_20250724
["ID","MTS","AMOUNT","RATE_DAILY","PERIOD"]
[374589850,1753363863760,-864.96,0.00024,2]
[374589851,1753363863770,-160.0,0.00024,7]
[374589852,1753363863779,-215.88777038,0.00024,7]
[374589853,1753363863789,-641.88,0.00024107,2]
[374589854,1753363863799,-1627.42,0.00024107,2]
[374589855,1753363863809,-1499.15,0.00024107,2]
[374589856,1753363863818,-553.43,0.00024107,2]
[374589857,1753363863828,-460.0,0.00024107,2]
[374589858,1753363863838,-1484.03,0.00024108,2]
[374589859,1753363863848,-518.24,0.00024108,2]
[374589860,1753363863858,-1755.19,0.00024108,2]
[374589861,1753363863867,-460.0,0.00024108,2]
[374589862,1753363863877,-460.0,0.00024108,2]
[374589863,1753363863887,-476.03,0.00024109,2]
[374589864,1753363863897,-460.0,0.00024109,2]
[374589865,1753363863906,-270.43,0.00024109,2]
[374589866,1753363863916,-918.61,0.00024109,2]
[374589867,1753363863926,-1380.86,0.00024109,2]
[374589868,1753363863938,-752.1,0.00024109,2]
[374589869,1753363863947,-1380.41,0.00024109,2]
[374589870,1753363863956,-460.0,0.00024109,2]
[374589871,1753363863966,-1201.56,0.00024109,2]
[374589872,1753363863981,-151.0,0.000243,6]
[374589873,1753363863991,-278.0,0.00024339,2]
[374589874,1753363864001,-966.45,0.0002436,2]
[374589875,1753363864011,-278.0,0.00024367,2]
[374589876,1753363864021,-641.88,0.00024381,2]
[374589877,1753363864030,-1627.42,0.00024381,2]
[374589878,1753363864040,-1499.15,0.00024381,2]
[374589879,1753363864050,-553.43,0.00024381,2]
[374589880,1753363864060,-311.74,0.00024381,2]
[374589881,1753363864070,-1484.03,0.00024382,2]
[374589882,1753363864079,-518.24,0.00024382,2]
[374589883,1753363864090,-1755.19,0.00024382,2]
[374589884,1753363864100,-454.54,0.00024382,2]
[374589885,1753363864110,-460.0,0.00024382,2]
[374589886,1753363864120,-476.03,0.00024383,2]
[374589887,1753363864130,-460.0,0.00024383,2]
[374589888,1753363864140,-918.61,0.00024383,2]
[374589889,1753363864150,-1380.86,0.00024383,2]
[374589890,1753363864160,-752.1,0.00024383,2]
[374589891,1753363864170,-1380.41,0.00024383,2]
[374589892,1753363864180,-460.0,0.00024383,2]
[374589893,1753363864190,-1201.56,0.00024383,2]
[374589894,1753363864200,-1281.28730661,0.000244,2]
[374589895,1753363864210,-2157.0,0.00024424,2]
[374589896,1753363864223,-969.0,0.00024424,2]
[374589897,1753363864232,-407.0,0.00024424,2]
[374589898,1753363864242,-421.197,0.00024424,2]
[374589899,1753363864253,-648.0,0.00024424,2]
[374589900,1753363864263,-223.0315306,0.00024454,2]
[374589901,1753363864273,-809.0,0.00024477,2]
[374589902,1753363864283,-23918.69,0.000245,2]
[374589903,1753363864293,-384425.6215217,0.000245,4]
[374589904,1753363864304,-2004.01418139,0.000245,3]
[374589905,1753363864313,-200.0,0.000245,2]
[374589906,1753363864324,-500.0,0.00024501,2]
[374589907,1753363864334,-1281.28730659,0.00024513,2]
[374589908,1753363864345,-1062.77623766,0.00024555,2]
[374589909,1753363864355,-278.0,0.00024594,7]
[374589910,1753363864365,-1281.28730659,0.00024626,2]
[374589911,1753363864376,-63359.56618861,0.0002465,2]
[374589912,1753363864387,-641.88,0.00024655,2]
[374589913,1753363864397,-1627.42,0.00024655,2]
[374589914,1753363864408,-1499.15,0.00024655,2]
[374589915,1753363864418,-553.43,0.00024655,2]
[374589916,1753363864430,-1484.03,0.00024656,2]
[374589917,1753363864439,-518.24,0.00024656,2]
[374589918,1753363864450,-1755.19,0.00024656,2]
[374589919,1753363864461,-460.0,0.00024656,2]
[374589920,1753363864476,-476.03,0.00024657,2]
[374589921,1753363864487,-460.0,0.00024657,2]
[374589922,1753363864498,-918.61,0.00024657,2]
[374589923,1753363864510,-1380.86,0.00024657,2]
[374589924,1753363864522,-752.1,0.00024657,2]
[374589925,1753363864533,-1380.41,0.00024657,2]
[374589926,1753363864544,-460.0,0.00024657,2]
[374589927,1753363864656,-1201.56,0.00024657,2]
[374589928,1753363864667,-1044.76,0.000247,7]
[374589929,1753363864678,-1281.28730659,0.00024739,2]
[374589930,1753363864689,-500.0,0.00024755,2]
[374589931,1753363864699,-151.0,0.00024769,7]
[374589932,1753363864709,-2000.0,0.000248,2]
[374589933,1753363864720,-4029.75,0.000248,7]
[374589934,1753363864738,-150.4,0.000248,2]
[374589935,1753363864749,-151.12785934,0.000248,30]
[374589936,1753363864759,-5521.1369782,0.000248,2]
[374589937,1753363864771,-8704.45033229,0.0002483,2]
[374589938,1753363864782,-1281.28730659,0.00024852,2]
[374589939,1753363864793,-2200.0,0.00024874,2]
[374589940,1753363864804,-73337.38322117,0.00024888,2]
[374589941,1753363864915,-112311.46910889,0.00024888,2]
[374589942,1753363864926,-460.0,0.00024899,2]
[374589943,1753363864936,-460.0,0.00024899,2]
[374589944,1753363864946,-460.0,0.00024899,2]
[374589945,1753363864956,-460.0,0.00024899,2]
[374589946,1753363864965,-460.0,0.00024899,2]
[374589947,1753363864980,-460.0,0.00024899,2]
[374589948,1753363864989,-461.81768093,0.00024899,2]
[374589949,1753363865000,-817274.547674,0.000249,2]
[374589950,1753363865011,-151.0,0.000249,7]
[374589951,1753363865021,-151.0,0.000249,7]
[374589952,1753363865032,-151.0,0.000249,7]
[374589953,1753363865042,-151.0,0.000249,7]
[374589954,1753363865052,-151.0,0.000249,7]
[374589955,1753363865066,-641.88,0.00024929,2]
[374589956,1753363865076,-1627.42,0.00024929,2]
[374589957,1753363865086,-1499.15,0.00024929,2]
[374589958,1753363865095,-553.43,0.00024929,2]
[374589959,1753363865105,-1484.03,0.0002493,2]
[374589960,1753363865115,-518.24,0.0002493,2]
[374589961,1753363865124,-1755.19,0.0002493,2]
[374589962,1753363865133,-460.0,0.0002493,2]
[374589963,1753363865143,-476.03,0.00024931,2]
[374589964,1753363865153,-261.2,0.00024931,2]
[374589965,1753363865163,-918.61,0.00024931,2]
[374589966,1753363865173,-1380.86,0.00024931,2]
[374589967,1753363865183,-752.1,0.00024931,2]
[374589968,1753363865193,-1380.41,0.00024931,2]
[374589969,1753363865203,-460.0,0.00024931,2]
[374589970,1753363865213,-1201.56,0.00024931,2]
[374589971,1753363865226,-1281.28730659,0.00024966,2]
[374589972,1753363865236,-243.379697,0.00024987,8]
[374589973,1753363865247,-371.06687411,0.00025,2]
[374589974,1753363865257,-1000.0,0.00025,2]
[374589975,1753363865267,-1000.0,0.00025,2]
[374589976,1753363865278,-1000.0,0.00025,2]
[374589977,1753363865290,-1000.0,0.00025,2]
[374589978,1753363865300,-1000.0,0.00025,2]
[374589979,1753363865311,-1000.0,0.00025,2]
[374589980,1753363865322,-1000.0,0.00025,2]
[374589981,1753363865332,-1000.0,0.00025,2]
[374589982,1753363865342,-1000.0,0.00025,2]
[374589983,1753363865353,-1000.0,0.00025,2]
[374589984,1753363865363,-1000.0,0.00025,2]
[374589985,1753363865374,-1000.0,0.00025,2]
[374589986,1753363865392,-1000.0,0.00025,2]
[374589987,1753363865402,-1000.0,0.00025,2]
[374589988,1753363865412,-1000.0,0.00025,2]
[374589989,1753363865423,-1000.0,0.00025,2]
[374589990,1753363865433,-1000.0,0.00025,2]
[374589991,1753363865443,-1000.0,0.00025,2]
[374589992,1753363865452,-1000.0,0.00025,2]
[374589993,1753363865464,-1000.0,0.00025,2]
[374589994,1753363865481,-1000.0,0.00025,2]
[374589995,1753363865492,-1000.0,0.00025,2]
[374589996,1753363865502,-1000.0,0.00025,2]
[374589997,1753363865512,-1000.0,0.00025,2]
[374589998,1753363865522,-1000.0,0.00025,2]
[374589999,1753363865531,-1000.0,0.00025,2]
[374590000,1753363865541,-1000.0,0.00025,2]
[374590001,1753363865551,-1000.0,0.00025,2]
[374590002,1753363865563,-1000.0,0.00025,2]
[374590003,1753363865574,-1000.0,0.00025,2]
[374590004,1753363865584,-1000.0,0.00025,2]
[374590005,1753363865594,-1000.0,0.00025,2]
[374590006,1753363865604,-1000.0,0.00025,2]
[374590007,1753363865614,-1000.0,0.00025,2]
[374590008,1753363865624,-1000.0,0.00025,2]
[374590009,1753363865634,-1000.0,0.00025,2]
[374590010,1753363865643,-1000.0,0.00025,2]
[374590011,1753363865653,-1000.0,0.00025,2]
[374590012,1753363865663,-1000.0,0.00025,2]
[374590013,1753363865672,-1000.0,0.00025,2]
[374590014,1753363865682,-1000.0,0.00025,2]
[374590015,1753363865691,-1000.0,0.00025,2]
[374590016,1753363865701,-1000.0,0.00025,2]
[374590017,1753363865711,-1000.0,0.00025,2]
[374590018,1753363865728,-1000.0,0.00025,2]
[374590019,1753363865737,-1000.0,0.00025,2]
[374590020,1753363865749,-1000.0,0.00025,2]
[374590021,1753363865763,-1000.0,0.00025,2]
[374590022,1753363865773,-1000.0,0.00025,2]
[374590023,1753363865783,-1000.0,0.00025,2]
[374590024,1753363865792,-1000.0,0.00025,2]
[374590025,1753363865802,-1000.0,0.00025,2]
[374590026,1753363865812,-1000.0,0.00025,2]
[374590027,1753363865821,-1000.0,0.00025,2]
[374590028,1753363865830,-1000.0,0.00025,2]
[374590029,1753363865841,-1000.0,0.00025,2]
[374590030,1753363865850,-1000.0,0.00025,2]
[374590031,1753363865860,-1000.0,0.00025,2]
[374590032,1753363865869,-1000.0,0.00025,2]
[374590033,1753363865879,-1000.0,0.00025,2]
[374590034,1753363865889,-1000.0,0.00025,2]
[374590035,1753363865900,-1000.0,0.00025,2]
[374590036,1753363865911,-1000.0,0.00025,2]
[374590037,1753363865922,-1000.0,0.00025,2]
[374590038,1753363865932,-1000.0,0.00025,2]
[374590039,1753363865941,-1000.0,0.00025,2]
[374590040,1753363865951,-500.0,0.00025027,5]
[374590041,1753363865961,-1281.28730659,0.00025079,2]
[374590042,1753363865974,-1140.86,0.000251,7]
[374590043,1753363865988,-809.0,0.00025121,2]
[374590044,1753363865998,-278.0,0.00025123,2]
[374590045,1753363866008,-151.0,0.00025133,7]
[374590046,1753363866017,-284.0,0.00025145,2]
[374590047,1753363866026,-823.0,0.00025151,2]
[374590048,1753363866036,-460.0,0.00025173,2]
[374590049,1753363866046,-460.0,0.00025173,2]
[374590050,1753363866056,-198.91500329,0.00025173,2]
[374590051,1753363866065,-460.0,0.00025173,2]
[374590052,1753363866075,-290.68906213,0.00025173,2]
[374590053,1753363866085,-460.0,0.00025173,2]
[374590054,1753363866095,-816.39450043,0.00025189,2]
[374590055,1753363866104,-1281.28730659,0.00025192,2]
[374590056,1753363866114,-892.0,0.000252,2]
[374590057,1753363866123,-641.88,0.00025203,2]
[374590058,1753363866133,-1627.42,0.00025203,2]
[374590059,1753363866144,-1499.15,0.00025203,2]
[374590060,1753363866153,-553.43,0.00025203,2]
[374590061,1753363866163,-1484.03,0.00025204,2]
[374590062,1753363866171,-518.24,0.00025204,2]
[374590063,1753363866182,-1755.19,0.00025204,2]
[374590064,1753363866191,-460.0,0.00025204,2]
[374590065,1753363866201,-476.03,0.00025205,2]
[374590066,1753363866210,-918.61,0.00025205,2]
[374590067,1753363866220,-1380.86,0.00025205,2]
[374590068,1753363866233,-752.1,0.00025205,2]
[374590069,1753363866243,-1380.41,0.00025205,2]
[374590070,1753363866252,-460.0,0.00025205,2]
[374590071,1753363866262,-1201.56,0.00025205,2]
[374590072,1753363866272,-1668.45,0.00025205,4]
[374590073,1753363866282,-1281.28730659,0.00025305,2]
[374590074,1753363866291,-1130.239946,0.0002538,5]
[374590075,1753363866301,-80000.0,0.00025398,2]
[374590076,1753363866310,-376.969206,0.000254,5]
[374590077,1753363866319,-1000.0,0.000254,5]
[374590078,1753363866329,-1281.28730659,0.00025418,2]
[374590079,1753363866338,-153.11677591,0.00025418,2]
[374590080,1753363866348,-460.0,0.00025447,2]
[374590081,1753363866358,-460.0,0.00025447,2]
[374590082,1753363866367,-460.0,0.00025447,2]
[374590083,1753363866378,-157.490413,0.00025447,2]
[374590084,1753363866389,-641.88,0.00025477,2]
[374590085,1753363866400,-1627.42,0.00025477,2]
[374590086,1753363866410,-1499.15,0.00025477,2]
[374590087,1753363866419,-553.43,0.00025477,2]
[374590088,1753363866431,-1484.03,0.00025478,2]
[374590089,1753363866440,-518.24,0.00025478,2]
[374590090,1753363866450,-1755.19,0.00025478,2]
[374590091,1753363866460,-460.0,0.00025478,2]
[374590092,1753363866476,-476.08874491,0.00025479,2]
[374590093,1753363866486,-918.61,0.00025479,2]
[374590094,1753363866497,-1380.86,0.00025479,2]
[374590095,1753363866507,-752.1,0.00025479,2]
[374590096,1753363866517,-1380.41,0.00025479,2]
[374590097,1753363866527,-216.9,0.00025479,2]
[374590098,1753363866537,-1201.56,0.00025479,2]
[374590099,1753363866548,-429.7456075,0.00025479,2]
[374590100,1753363866558,-178.2667198,0.00025479,2]
[374590101,1753363866568,-429.7456075,0.00025479,2]
[374590102,1753363866578,-429.7456075,0.00025479,2]
[374590103,1753363866588,-429.7456075,0.00025479,2]
[374590104,1753363866598,-429.7456075,0.00025479,2]
[374590105,1753363866608,-429.7456075,0.00025479,2]
[374590106,1753363866618,-429.7456075,0.00025479,2]
[374590107,1753363866628,-429.7456075,0.00025479,2]
[374590108,1753363866638,-429.7456075,0.00025479,2]
[374590109,1753363866648,-429.7456075,0.00025479,2]
[374590110,1753363866657,-429.7456075,0.00025479,2]
[374590111,1753363866667,-429.7456075,0.00025479,2]
[374590112,1753363866772,-429.7456075,0.00025479,2]
[374590113,1753363866782,-429.7456075,0.00025479,2]
[374590114,1753363866793,-429.7456075,0.00025479,2]
[374590115,1753363866802,-429.7456075,0.00025479,2]
[374590116,1753363866812,-429.7456075,0.00025479,2]
[374590117,1753363866822,-429.7456075,0.00025479,2]
[374590118,1753363866832,-429.7456075,0.00025479,2]
[374590119,1753363866842,-288.985991,0.00025479,2]
[374590120,1753363866852,-159.9507963,0.00025479,2]
[374590121,1753363866862,-457.0,0.0002548,2]
[374590122,1753363866872,-221.1447869,0.0002548,2]
[374590123,1753363866882,-151.0,0.0002548,2]
[374590124,1753363866891,-184.12379564,0.0002548,2]
[374590125,1753363866901,-151.0,0.0002548,2]
[374590126,1753363866911,-151.0,0.0002548,2]
[374590127,1753363866921,-201.96851347,0.0002548,2]
[374590128,1753363866931,-494.0,0.0002548,2]
[374590129,1753363866940,-151.0,0.0002548,2]
[374590130,1753363866950,-151.0,0.0002548,2]
[374590131,1753363866960,-491.0,0.0002548,2]
[374590132,1753363866970,-174.129262,0.00025484,7]
[374590133,1753363866983,-151.0,0.00025484,7]
[374590134,1753363866992,-151.0,0.00025484,7]
[374590135,1753363867001,-151.0,0.00025484,7]
[374590136,1753363867011,-151.0,0.00025484,7]
[374590137,1753363867020,-151.0,0.00025484,7]
[374590138,1753363867030,-153.902934,0.00025484,7]
[374590139,1753363867039,-151.0,0.00025484,7]
[374590140,1753363867049,-151.733625,0.00025484,7]
[374590141,1753363867058,-151.0,0.00025484,7]
[374590142,1753363867067,-151.0,0.00025484,7]
[374590143,1753363867077,-151.0,0.00025484,7]
[374590144,1753363867087,-151.0,0.00025484,7]
[374590145,1753363867097,-151.0,0.00025484,7]
[374590146,1753363867107,-151.0,0.00025484,7]
[374590147,1753363867117,-151.0,0.00025484,7]
[374590148,1753363867126,-151.0,0.00025484,7]
[374590149,1753363867136,-151.0,0.00025484,7]
[374590150,1753363867146,-151.0,0.00025484,7]
[374590151,1753363867155,-151.0,0.00025484,7]
[374590152,1753363867165,-151.0,0.00025484,7]
[374590153,1753363867175,-151.0,0.00025484,7]
[374590154,1753363867185,-151.0,0.00025484,7]
[374590155,1753363867195,-151.0,0.00025484,7]
[374590156,1753363867204,-151.0,0.00025484,7]
[374590157,1753363867214,-151.0,0.00025484,7]
[374590158,1753363867227,-151.0,0.00025484,7]
[374590159,1753363867236,-151.0,0.00025484,7]
[374590160,1753363867246,-151.0,0.00025484,7]
[374590161,1753363867256,-151.0,0.00025484,7]
[374590162,1753363867266,-151.0,0.00025484,7]
[374590163,1753363867275,-151.0,0.00025484,7]
[374590164,1753363867285,-151.0,0.00025484,7]
[374590165,1753363867295,-179.707256,0.00025484,7]
[374590166,1753363867305,-151.0,0.00025484,7]
[374590167,1753363867314,-151.0,0.00025484,7]
[374590168,1753363867323,-151.0,0.00025484,7]
[374590169,1753363867333,-151.0,0.00025484,7]
[374590170,1753363867342,-151.0,0.00025484,7]
[374590171,1753363867351,-190.094215,0.00025484,7]
[374590172,1753363867361,-151.0,0.00025484,7]
[374590173,1753363867370,-151.0,0.00025484,7]
[374590174,1753363867380,-151.0,0.00025484,7]
[374590175,1753363867391,-151.0,0.00025484,7]
[374590176,1753363867402,-151.0,0.00025484,7]
[374590177,1753363867411,-151.0,0.00025484,7]
[374590178,1753363867422,-151.0,0.00025484,7]
[374590179,1753363867432,-151.0,0.00025484,7]
[374590180,1753363867441,-237.186942,0.00025484,7]
[374590181,1753363867451,-151.0,0.00025484,7]
[374590182,1753363867460,-151.0,0.00025484,7]
[374590183,1753363867475,-151.0,0.00025484,7]
[374590184,1753363867485,-151.0,0.00025484,7]
[374590185,1753363867496,-151.0,0.00025484,7]
[374590186,1753363867506,-151.0,0.00025484,7]
[374590187,1753363867516,-151.0,0.00025484,7]
[374590188,1753363867525,-151.0,0.00025484,7]
[374590189,1753363867535,-151.0,0.00025484,7]
[374590190,1753363867545,-151.0,0.00025484,7]
[374590191,1753363867554,-151.0,0.00025484,7]
[374590192,1753363867564,-163.455681,0.00025484,7]
[374590193,1753363867574,-151.0,0.00025484,7]
[374590194,1753363867583,-151.0,0.00025484,7]
[374590195,1753363867593,-151.0,0.00025484,7]
[374590196,1753363867603,-151.0,0.00025484,7]
[374590197,1753363867614,-151.0,0.00025484,7]
[374590198,1753363867623,-293.925083,0.00025484,7]
[374590199,1753363867633,-151.242856,0.00025484,7]
[374590200,1753363867643,-151.0,0.00025484,7]
[374590201,1753363867652,-151.0,0.00025484,7]
[374590202,1753363867662,-151.0,0.00025484,7]
[374590203,1753363867671,-151.0,0.00025484,7]
[374590204,1753363867682,-151.0,0.00025484,7]
[374590205,1753363867693,-151.0,0.00025484,7]
[374590206,1753363867704,-151.604884,0.00025484,7]
[374590207,1753363867713,-151.0,0.00025484,7]
[374590208,1753363867727,-151.0,0.00025484,7]
[374590209,1753363867738,-151.0,0.00025484,7]
[374590210,1753363867748,-151.0,0.00025484,7]
[374590211,1753363867758,-151.0,0.00025484,7]
[374590212,1753363867768,-151.0,0.00025484,7]
[374590213,1753363867778,-151.0,0.00025484,7]
[374590214,1753363867787,-246.81665,0.00025484,7]
[374590215,1753363867798,-151.0,0.00025489,7]
[374590216,1753363867808,-151.0,0.00025489,7]
[374590217,1753363867818,-151.0,0.00025489,7]
[374590218,1753363867828,-151.0,0.00025489,7]
[374590219,1753363867838,-151.0,0.00025489,7]
[374590220,1753363867848,-151.0,0.00025489,7]
[374590221,1753363867860,-151.0,0.00025489,7]
[374590222,1753363867869,-151.0,0.00025489,7]
[374590223,1753363867878,-151.0,0.00025489,7]
[374590224,1753363867887,-151.0,0.00025489,7]
[374590225,1753363867897,-151.0,0.00025489,7]
[374590226,1753363867907,-151.0,0.00025489,7]
[374590227,1753363867916,-151.0,0.00025489,7]
[374590228,1753363867926,-151.0,0.00025489,7]
[374590229,1753363867936,-151.0,0.00025489,7]
[374590230,1753363867946,-151.0,0.00025489,7]
[374590231,1753363867959,-151.0,0.00025489,7]
[374590232,1753363867975,-151.0,0.00025489,7]
[374590233,1753363867993,-151.982058,0.00025489,7]
[374590234,1753363868006,-151.183589,0.00025489,7]
[374590235,1753363868017,-151.0,0.00025489,7]
[374590236,1753363868027,-151.0,0.00025489,7]
[374590237,1753363868037,-151.0,0.00025489,7]
[374590238,1753363868048,-151.0,0.00025489,7]
[374590239,1753363868058,-151.0,0.00025489,7]
[374590240,1753363868068,-151.0,0.00025489,7]
[374590241,1753363868077,-151.0,0.00025489,7]
[374590242,1753363868087,-151.0,0.00025489,7]
[374590243,1753363868097,-151.0,0.00025489,7]
[374590244,1753363868107,-151.0,0.00025489,7]
[374590245,1753363868117,-151.0,0.00025489,7]
[374590246,1753363868127,-151.0,0.00025489,7]
[374590247,1753363868137,-151.0,0.00025489,7]
[374590248,1753363868147,-151.0,0.00025489,7]
[374590249,1753363868157,-151.0,0.00025489,7]
[374590250,1753363868167,-151.0,0.00025489,7]
[374590251,1753363868176,-151.0,0.00025489,7]
[374590252,1753363868186,-151.0,0.00025489,7]
[374590253,1753363868196,-151.0,0.00025489,7]
[374590254,1753363868207,-151.0,0.00025489,7]
[374590255,1753363868217,-171.750868,0.00025489,7]
[374590256,1753363868234,-151.0,0.00025489,7]
[374590257,1753363868245,-151.0,0.00025489,7]
[374590258,1753363868254,-151.0,0.00025489,7]
[374590259,1753363868264,-151.0,0.00025489,7]
[374590260,1753363868273,-151.0,0.00025489,7]
[374590261,1753363868284,-151.0,0.00025489,7]
[374590262,1753363868293,-187.948996,0.00025489,7]
[374590263,1753363868304,-1500.0,0.00025489,14]
[374590264,1753363868314,-1500.0,0.00025489,14]
[374590265,1753363868324,-1500.0,0.00025489,14]
[374590266,1753363868334,-1500.0,0.00025489,14]
[374590267,1753363868344,-1500.0,0.00025489,14]
[374590268,1753363868353,-1500.0,0.00025489,14]
[374590269,1753363868363,-1500.0,0.00025489,14]
[374590270,1753363868373,-1500.0,0.00025489,14]
[374590271,1753363868386,-1500.0,0.00025489,14]
[374590272,1753363868396,-151.0,0.00025489,7]
[374590273,1753363868406,-151.0,0.00025489,7]
[374590274,1753363868416,-151.0,0.00025489,7]
[374590275,1753363868426,-151.0,0.00025489,7]
[374590276,1753363868436,-151.0,0.00025489,7]
[374590277,1753363868446,-151.0,0.00025489,7]
[374590278,1753363868456,-151.0,0.00025489,7]
[374590279,1753363868466,-151.0,0.00025489,7]
[374590280,1753363868479,-151.0,0.00025489,7]
[374590281,1753363868488,-1500.0,0.00025489,14]
[374590282,1753363868498,-1500.0,0.00025489,14]
[374590283,1753363868508,-1500.0,0.00025489,14]
[374590284,1753363868518,-1500.0,0.00025489,14]
[374590285,1753363868528,-1500.0,0.00025489,14]
[374590286,1753363868538,-1500.0,0.00025489,14]
[374590287,1753363868548,-1500.0,0.00025489,14]
[374590288,1753363868558,-1500.0,0.00025489,14]
[374590289,1753363868568,-1500.0,0.00025489,14]
[374590290,1753363868578,-1500.0,0.00025489,14]
[374590291,1753363868587,-1500.0,0.00025489,14]
[374590292,1753363868597,-1500.0,0.00025489,14]
[374590293,1753363868608,-1189.889258,0.00025489,14]
[374590294,1753363868617,-179.463855,0.00025489,7]
[374590295,1753363868627,-179.463855,0.00025489,7]
[374590296,1753363868637,-179.463855,0.00025489,7]
[374590297,1753363868736,-179.463855,0.00025489,7]
[374590298,1753363868747,-179.463855,0.00025489,7]
[374590299,1753363868757,-179.463855,0.00025489,7]
[374590300,1753363868767,-179.463855,0.00025489,7]
[374590301,1753363868777,-179.463855,0.00025489,7]
[374590302,1753363868787,-179.463855,0.00025489,7]
[374590303,1753363868798,-179.463855,0.00025489,7]
[374590304,1753363868808,-179.463855,0.00025489,7]
[374590305,1753363868820,-179.463855,0.00025489,7]
[374590306,1753363868830,-179.463855,0.00025489,7]
[374590307,1753363868840,-179.463855,0.00025489,7]
[374590308,1753363868851,-179.463855,0.00025489,7]
[374590309,1753363868861,-179.463855,0.00025489,7]
[374590310,1753363868872,-179.463855,0.00025489,7]
[374590311,1753363868881,-179.463855,0.00025489,7]
[374590312,1753363868892,-179.463855,0.00025489,7]
[374590313,1753363868902,-179.463862,0.00025489,7]
[374590314,1753363868913,-151.0,0.00025489,7]
[374590315,1753363868924,-151.0,0.00025489,7]
[374590316,1753363868934,-151.0,0.00025489,7]
[374590317,1753363868944,-151.0,0.00025489,7]
[374590318,1753363868954,-151.0,0.00025489,7]
[374590319,1753363868964,-157.85713283,0.00025489,7]
[374590320,1753363868979,-151.0,0.00025489,7]
[374590321,1753363868989,-288.914754,0.00025489,7]
[374590322,1753363868999,-151.0,0.00025489,7]
[374590323,1753363869009,-151.0,0.00025489,7]
[374590324,1753363869019,-151.0,0.00025489,7]
[374590325,1753363869029,-151.0,0.00025489,7]
[374590326,1753363869039,-151.0,0.00025489,7]
[374590327,1753363869049,-151.0,0.00025489,7]
[374590328,1753363869059,-151.0,0.00025489,7]
[374590329,1753363869069,-151.0,0.00025489,7]
[374590330,1753363869078,-151.0,0.00025489,7]
[374590331,1753363869087,-151.0,0.00025489,7]
[374590332,1753363869097,-151.0,0.00025489,7]
[374590333,1753363869106,-151.0,0.00025489,7]
[374590334,1753363869116,-151.0,0.00025489,7]
[374590335,1753363869125,-151.0,0.00025489,7]
[374590336,1753363869135,-151.0,0.00025489,7]
[374590337,1753363869144,-151.0,0.00025489,7]
[374590338,1753363869153,-151.0,0.00025489,7]
[374590339,1753363869163,-151.0,0.00025489,7]
[374590340,1753363869173,-151.0,0.00025489,7]
[374590341,1753363869182,-151.0,0.00025489,7]
[374590342,1753363869191,-151.0,0.00025489,7]
[374590343,1753363869201,-151.0,0.00025489,7]
[374590344,1753363869210,-151.0,0.00025489,7]
[374590345,1753363869220,-151.0,0.00025489,7]
[374590346,1753363869234,-151.0,0.00025489,7]
[374590347,1753363869243,-188.629034,0.00025489,7]
[374590348,1753363869253,-151.0,0.00025489,7]
[374590349,1753363869263,-151.0,0.00025489,7]